fUST/lending_fUST_20241205
["ID","MTS","AMOUNT","RATE_DAILY","PERIOD"]
[344343814,1733357440418,-500.0,0.00020807,2]
[344343815,1733357440428,-447.75777808,0.00020807,2]
[344343816,1733357440438,-160.0,0.00022,2]
[344343817,1733357440447,-169.884775,0.00022009,2]
[344343818,1733357440457,-9363.46679552,0.00022609,2]
[344343831,1733357443312,-7350.92332791,0.00022609,2]
[344343832,1733357443324,-7200.78447823,0.00022609,2]
[344343848,1733357531157,163.819661,0.00013973,2]
[344343854,1733358070597,200.613999,0.00027,30]
[344343862,1733358405135,-221.78307097,0.00020673,2]
[344343950,1733358632462,-474.85755112,0.00020377,2]
[344343952,1733358632472,-85.79964703,0.00020673,2]
[344343954,1733358632481,-300.0,0.00021012,2]
[344343956,1733358632491,-300.0,0.00021012,2]
[344343958,1733358632505,-3960.93630788,0.00021013,2]
[344343959,1733358632535,-20939.06369212,0.00021013,2]
[344343960,1733358632545,-9336.62278929,0.00021339,2]
[344343961,1733358632555,-2591.76836169,0.00021481,2]
[344343963,1733358632565,-9336.62278929,0.00021566,2]
[344343965,1733358632574,-163.819661,0.00021661,2]
[344343967,1733358632583,-500.0,0.00021867,2]
[344343969,1733358632594,-584.58158256,0.00021867,2]
[344343971,1733358632603,-500.0,0.00021867,2]
[344343973,1733358632613,-500.0,0.00021867,2]
[344343975,1733358632623,-361.77219291,0.00021867,2]
[344343977,1733358632632,-500.0,0.00021867,2]
[344343979,1733358632642,-500.0,0.00021867,2]
[344343981,1733358632651,-500.0,0.00021867,2]
[344343983,1733358632661,-500.0,0.00021867,2]
[344343985,1733358632670,-500.0,0.00021867,2]
[344343987,1733358632680,-463.10090751,0.00021867,2]
[344343989,1733358632690,-500.0,0.00021867,2]
[344343991,1733358632699,-500.0,0.00021867,2]
[344343993,1733358632708,-500.0,0.00021867,2]
[344343995,1733358632718,-571.45172256,0.00021867,2]
[344343997,1733358632727,-500.0,0.00021867,2]
[344343999,1733358632736,-9336.62278929,0.00021868,2]
[344344001,1733358632750,-9336.62278929,0.00021967,2]
[344344003,1733358632759,-170.0,0.00022,2]
[344344005,1733358632768,-9336.62278929,0.00022235,2]
[344344007,1733358632778,-171.965206,0.00022239,2]
[344344009,1733358632787,-165.61046808,0.00022462,2]
[344344011,1733358632797,-323.13,0.0002266,3]
[344344013,1733358632806,-2591.76836169,0.0002281,2]
[344344015,1733358632816,-420.0,0.00022856,2]
[344344018,1733358632836,-2767.394005,0.00023,2]
[344344020,1733358632845,-420.0,0.00023113,2]
[344344022,1733358632855,-302.74503449,0.00023288,2]
[344344024,1733358632865,-484.72,0.0002351,3]
[344344026,1733358632874,-157.60796459,0.0002352,2]
[344344028,1733358632885,-194.781548,0.00023562,2]
[344344030,1733358632895,-208.2971232,0.0002394,2]
[344344032,1733358632904,-500.0,0.00023973,2]
[344344033,1733358632914,-512.79116445,0.00023973,2]
[344344034,1733358632924,-500.0,0.00023973,2]
[344344035,1733358632933,-161.57,0.0002399,3]
[344344036,1733358632943,-162.63035357,0.00023999,2]
[344344038,1733358632953,-171.76123692,0.00023999,2]
[344344040,1733358632962,-500.0,0.00023999,2]
[344344042,1733358632972,-447.99658616,0.00023999,2]
[344344044,1733358632982,-96763.42315275,0.00024,7]
[344344060,1733358633147,-646.26,0.0002403,3]
[344344062,1733358633158,-2591.76836169,0.00024139,2]
[344344064,1733358633169,-2936.0,0.00024341,2]
[344344066,1733358633180,-1000.0,0.00024521,2]
[344344068,1733358633192,-1000.0,0.00024521,2]
[344344070,1733358633203,-500.0,0.00024657,7]
[344344072,1733358633214,-500.0,0.00024657,7]
[344344074,1733358633224,-500.0,0.00024657,7]
[344344076,1733358633234,-607.10068506,0.00024657,7]
[344344078,1733358633245,-500.0,0.00024657,7]
[344344080,1733358633259,-500.0,0.00024657,7]
[344344082,1733358633269,-307.49761637,0.00024657,7]
[344344084,1733358633280,-503.21672193,0.00024657,7]
[344344086,1733358633290,-500.0,0.00024657,7]
[344344088,1733358633301,-500.0,0.00024657,7]
[344344090,1733358633311,-500.0,0.00024657,7]
[344344092,1733358633321,-500.0,0.00024657,7]
[344344094,1733358633331,-500.0,0.00024657,7]
[344344096,1733358633341,-500.0,0.00024657,7]
[344344098,1733358633351,-500.0,0.00024657,7]
[344344100,1733358633362,-500.0,0.00024657,7]
[344344102,1733358633375,-500.0,0.00024657,7]
[344344104,1733358633386,-500.0,0.00024657,7]
[344344106,1733358633396,-500.0,0.00024657,7]
[344344108,1733358633406,-500.0,0.00024657,7]
[344344110,1733358633417,-500.0,0.00024657,7]
[344344112,1733358633427,-500.0,0.00024657,7]
[344344113,1733358633437,-500.0,0.00024657,7]
[344344114,1733358633448,-500.0,0.00024657,7]
[344344115,1733358633459,-500.0,0.00024657,7]
[344344116,1733358633469,-526.6751914,0.00024657,7]
[344344117,1733358633479,-529.36186343,0.00024657,7]
[344344118,1733358633489,-500.0,0.00024657,7]
[344344119,1733358633504,-500.0,0.00024657,7]
[344344120,1733358633514,-500.0,0.00024657,7]
[344344121,1733358633524,-500.0,0.00024657,7]
[344344122,1733358633535,-502.65604003,0.00024657,7]
[344344123,1733358633545,-157.16459311,0.00024657,7]
[344344124,1733358633557,-500.0,0.00024657,7]
[344344125,1733358633568,-503.3050468,0.00024657,7]
[344344126,1733358633578,-502.6437762,0.00024657,7]
[344344127,1733358633588,-500.0,0.00024657,7]
[344344128,1733358633599,-500.0,0.00024657,7]
[344344129,1733358633609,-414.72535098,0.00024657,7]
[344344130,1733358633619,-505.23798202,0.00024657,7]
[344344131,1733358633629,-500.0,0.00024657,7]
[344344132,1733358633640,-445.69192735,0.00024657,7]
[344344133,1733358633650,-501.45447408,0.00024657,7]
[344344134,1733358633660,-500.0,0.00024657,7]
[344344135,1733358633670,-503.25175192,0.00024657,7]
[344344136,1733358633682,-502.31845153,0.00024657,7]
[344344137,1733358633692,-500.0,0.00024657,7]
[344344138,1733358633702,-500.0,0.00024657,7]
[344344139,1733358633712,-500.0,0.00024657,7]
[344344140,1733358633722,-502.44314808,0.00024657,7]
[344344141,1733358633745,-500.0,0.00024657,7]
[344344142,1733358633760,-502.14577109,0.00024657,7]
[344344143,1733358633773,-500.0,0.00024657,5]
[344344144,1733358633784,-500.0,0.00024657,7]
[344344145,1733358633795,-500.0,0.00024657,7]
[344344146,1733358633806,-500.0,0.00024657,7]
[344344147,1733358633816,-500.0,0.00024657,7]
[344344148,1733358633827,-500.0,0.00024657,7]
[344344149,1733358633837,-500.0,0.00024657,7]
[344344150,1733358633848,-500.0,0.00024657,7]
[344344151,1733358633858,-505.95580433,0.00024657,7]
[344344152,1733358633868,-500.0,0.00024657,7]
[344344153,1733358633878,-501.84898082,0.00024657,7]
[344344154,1733358633892,-500.0,0.00024657,7]
[344344155,1733358633903,-500.0,0.00024657,7]
[344344156,1733358633914,-500.0,0.00024657,7]
[344344157,1733358633925,-500.0,0.00024657,7]
[344344158,1733358633936,-500.0,0.00024657,7]
[344344159,1733358633946,-504.06860893,0.00024657,7]
[344344160,1733358633957,-503.36584606,0.00024657,7]
[344344161,1733358633967,-500.0,0.00024657,7]
[344344162,1733358633977,-500.0,0.00024657,7]
[344344163,1733358633987,-500.0,0.00024657,7]
[344344164,1733358634002,-500.0,0.00024657,7]
[344344165,1733358634012,-500.0,0.00024657,7]
[344344166,1733358634022,-408.57687871,0.00024657,7]
[344344167,1733358634032,-500.0,0.00024657,7]
[344344168,1733358634042,-500.0,0.00024657,7]
[344344169,1733358634052,-500.0,0.00024657,7]
[344344170,1733358634062,-500.0,0.00024657,7]
[344344171,1733358634073,-503.86712115,0.00024657,7]
[344344172,1733358634083,-500.0,0.00024657,7]
[344344173,1733358634093,-501.33166979,0.00024657,7]
[344344174,1733358634103,-500.0,0.00024657,7]
[344344175,1733358634113,-200.0,0.00024657,7]
[344344176,1733358634123,-489.52757093,0.00024657,7]
[344344177,1733358634133,-500.0,0.00024657,7]
[344344178,1733358634143,-500.0,0.00024657,7]
[344344179,1733358634153,-641.95370559,0.00024657,7]
[344344180,1733358634164,-509.67871588,0.00024657,7]
[344344181,1733358634174,-500.0,0.00024657,7]
[344344182,1733358634184,-500.0,0.00024657,7]
[344344183,1733358634194,-500.0,0.00024657,7]
[344344184,1733358634203,-500.0,0.00024657,7]
[344344185,1733358634213,-495.0,0.00024657,7]
[344344186,1733358634223,-500.0,0.00024657,7]
[344344187,1733358634232,-501.7608286,0.00024657,7]
[344344188,1733358634242,-500.0,0.00024657,7]
[344344189,1733358634260,-627.67246432,0.00024657,7]
[344344190,1733358634272,-500.0,0.00024657,7]
[344344191,1733358634283,-500.0,0.00024657,7]
[344344192,1733358634293,-500.0,0.00024657,7]
[344344193,1733358634304,-500.0,0.00024657,7]
[344344194,1733358634314,-500.0,0.00024657,7]
[344344195,1733358634324,-500.0,0.00024657,7]
[344344196,1733358634334,-500.0,0.00024657,7]
[344344197,1733358634343,-500.0,0.00024657,7]
[344344198,1733358634355,-755.13,0.00024657,7]
[344344199,1733358634366,-502.16956235,0.00024657,7]
[344344200,1733358634376,-500.0,0.00024657,7]
[344344201,1733358634388,-500.0,0.00024657,7]
[344344202,1733358634399,-500.0,0.00024657,7]
[344344203,1733358634409,-500.0,0.00024657,7]
[344344204,1733358634423,-500.0,0.00024657,7]
[344344205,1733358634434,-500.0,0.00024657,7]
[344344206,1733358634446,-500.0,0.00024657,7]
[344344207,1733358634457,-500.0,0.00024657,7]
[344344208,1733358634469,-500.0,0.00024657,7]
[344344209,1733358634480,-373.21504334,0.00024657,7]
[344344210,1733358634491,-500.0,0.00024657,7]
[344344211,1733358634507,-500.0,0.00024657,7]
[344344212,1733358634518,-582.05440686,0.00024657,7]
[344344213,1733358634528,-500.0,0.00024657,7]
[344344214,1733358634539,-500.0,0.00024657,7]
[344344215,1733358634550,-261.65335117,0.00024657,7]
[344344216,1733358634560,-500.0,0.00024657,2]
[344344217,1733358634571,-501.98676923,0.00024657,7]
[344344218,1733358634581,-500.0,0.00024657,7]
[344344219,1733358634591,-500.0,0.00024657,7]
[344344220,1733358634600,-500.0,0.00024657,7]
[344344221,1733358634611,-500.0,0.00024657,7]
[344344222,1733358634621,-500.0,0.00024657,7]
[344344223,1733358634631,-500.0,0.00024657,7]
[344344224,1733358634642,-500.0,0.00024657,7]
[344344225,1733358634652,-500.0,0.00024657,7]
[344344226,1733358634662,-500.0,0.00024657,7]
[344344227,1733358634674,-530.65,0.00024657,7]
[344344228,1733358634684,-165.09270622,0.00024657,7]
[344344229,1733358634695,-500.0,0.00024657,7]
[344344230,1733358634705,-500.0,0.00024657,7]
[344344231,1733358634715,-500.0,0.00024657,7]
[344344232,1733358634726,-500.0,0.00024657,7]
[344344233,1733358634736,-500.0,0.00024657,7]
[344344234,1733358634756,-500.0,0.00024657,7]
[344344235,1733358634766,-500.0,0.00024657,7]
[344344236,1733358634776,-500.0,0.00024657,7]
[344344237,1733358634787,-500.0,0.00024657,7]
[344344238,1733358634796,-500.0,0.00024657,7]
[344344239,1733358634807,-500.0,0.00024657,7]
[344344240,1733358634820,-500.0,0.00024657,7]
[344344241,1733358634830,-500.0,0.00024657,7]
[344344242,1733358634841,-500.0,0.00024657,7]
[344344243,1733358634851,-517.7123146,0.00024657,7]
[344344244,1733358634861,-500.0,0.00024657,7]
[344344245,1733358634873,-500.0,0.00024657,7]
[344344246,1733358634885,-500.0,0.00024657,7]
[344344247,1733358634898,-500.0,0.00024657,7]
[344344248,1733358634908,-500.0,0.00024657,7]
[344344249,1733358634918,-569.63665809,0.00024657,7]
[344344250,1733358634929,-500.0,0.00024657,7]
[344344251,1733358634939,-500.0,0.00024657,7]
[344344252,1733358634948,-500.0,0.00024657,7]
[344344253,1733358634959,-500.0,0.00024657,7]
[344344254,1733358634969,-500.0,0.00024657,7]
[344344255,1733358634979,-500.0,0.00024657,7]
[344344256,1733358634990,-316.18279811,0.00024657,7]
[344344257,1733358635004,-500.0,0.00024657,7]
[344344258,1733358635013,-500.0,0.00024657,7]
[344344259,1733358635023,-254.75898187,0.00024657,7]
[344344260,1733358635033,-314.96860477,0.00024657,7]
[344344261,1733358635043,-500.0,0.00024657,7]
[344344262,1733358635053,-500.0,0.00024657,7]
[344344263,1733358635064,-500.0,0.00024657,7]
[344344264,1733358635074,-462.82740669,0.00024657,7]
[344344265,1733358635083,-500.0,0.00024657,7]
[344344266,1733358635094,-537.93723948,0.00024657,7]
[344344267,1733358635104,-502.21717855,0.00024657,7]
[344344268,1733358635113,-500.0,0.00024657,7]
[344344269,1733358635124,-500.0,0.00024657,7]
[344344270,1733358635135,-500.0,0.00024657,7]
[344344271,1733358635145,-500.0,0.00024657,7]
[344344272,1733358635155,-500.0,0.00024657,7]
[344344273,1733358635164,-500.0,0.00024657,7]
[344344274,1733358635174,-500.0,0.00024657,7]
[344344275,1733358635184,-500.0,0.00024657,7]
[344344276,1733358635194,-500.0,0.00024657,7]
[344344277,1733358635203,-500.0,0.00024657,7]
[344344278,1733358635214,-500.0,0.00024657,7]
[344344279,1733358635224,-500.0,0.00024657,7]
[344344280,1733358635234,-500.0,0.00024657,7]
[344344281,1733358635243,-500.0,0.00024657,7]
[344344282,1733358635256,-517.07872995,0.00024657,7]
[344344283,1733358635266,-500.0,0.00024657,7]
[344344284,1733358635275,-500.0,0.00024657,7]
[344344285,1733358635285,-203.20834067,0.00024657,7]
[344344286,1733358635294,-500.0,0.00024657,7]
[344344287,1733358635304,-500.0,0.00024657,7]
[344344288,1733358635314,-749.7,0.00024657,7]
[344344289,1733358635324,-500.0,0.00024657,7]
[344344290,1733358635334,-500.0,0.00024657,7]
[344344291,1733358635345,-500.0,0.00024657,7]
[344344292,1733358635359,-500.0,0.00024657,7]
[344344293,1733358635371,-506.5714307,0.00024657,7]
[344344294,1733358635382,-500.0,0.00024657,7]
[344344295,1733358635391,-500.0,0.00024657,7]
[344344296,1733358635403,-500.0,0.00024657,7]
[344344297,1733358635412,-500.0,0.00024657,7]
[344344298,1733358635422,-500.0,0.00024657,7]
[344344299,1733358635432,-500.0,0.00024657,7]
[344344300,1733358635443,-500.0,0.00024657,7]
[344344301,1733358635452,-189.75037717,0.00024657,7]
[344344302,1733358635462,-513.54,0.00024657,7]
[344344303,1733358635472,-500.0,0.00024657,7]
[344344304,1733358635482,-500.0,0.00024657,7]
[344344305,1733358635492,-296.63606779,0.00024657,7]
[344344306,1733358635507,-500.0,0.00024657,7]
[344344307,1733358635517,-500.0,0.00024657,7]
[344344308,1733358635527,-500.0,0.00024657,7]
[344344309,1733358635538,-500.0,0.00024657,7]
[344344310,1733358635548,-500.0,0.00024657,7]
[344344311,1733358635557,-500.0,0.00024657,7]
[344344312,1733358635567,-500.0,0.00024657,7]
[344344313,1733358635576,-500.0,0.00024657,7]
[344344314,1733358635586,-500.0,0.00024657,7]
[344344315,1733358635596,-637.1720285,0.00024657,7]
[344344316,1733358635605,-500.0,0.00024657,7]
[344344317,1733358635615,-500.0,0.00024657,7]
[344344318,1733358635624,-500.0,0.00024657,7]
[344344319,1733358635634,-500.0,0.00024657,7]
[344344320,1733358635645,-500.0,0.00024657,7]
[344344321,1733358635655,-500.0,0.00024657,7]
[344344322,1733358635664,-500.0,0.00024657,7]
[344344323,1733358635674,-500.0,0.00024657,7]
[344344324,1733358635683,-500.0,0.00024657,7]
[344344325,1733358635692,-500.0,0.00024657,7]
[344344326,1733358635702,-500.0,0.00024657,7]
[344344327,1733358635712,-500.0,0.00024657,7]
[344344328,1733358635721,-247.77047793,0.00024657,7]
[344344329,1733358635731,-500.0,0.00024657,7]
[344344330,1733358635740,-281.19062811,0.00024657,2]
[344344331,1733358635756,-500.0,0.00024657,7]
[344344332,1733358635765,-500.0,0.00024657,7]
[344344333,1733358635775,-500.0,0.00024657,7]
[344344334,1733358635785,-500.0,0.00024657,7]
[344344335,1733358635794,-308.82396243,0.00024657,7]
[344344336,1733358635805,-422.55967676,0.00024657,7]
[344344337,1733358635817,-500.0,0.00024657,7]
[344344338,1733358635827,-500.0,0.00024657,7]
[344344339,1733358635836,-500.0,0.00024657,7]
[344344340,1733358635846,-500.0,0.00024657,7]
[344344341,1733358635856,-500.0,0.00024657,7]
[344344342,1733358635866,-500.0,0.00024657,7]
[344344343,1733358635875,-500.0,0.00024657,7]
[344344344,1733358635885,-465.25013816,0.00024657,7]
[344344345,1733358635895,-500.0,0.00024657,7]
[344344346,1733358635905,-500.0,0.00024657,7]
[344344347,1733358635915,-500.0,0.00024657,7]
[344344348,1733358635924,-500.0,0.00024657,7]
[344344349,1733358635934,-500.0,0.00024657,7]
[344344350,1733358635943,-504.39944899,0.00024657,7]
[344344351,1733358635953,-503.35050149,0.00024657,7]
[344344352,1733358635962,-500.0,0.00024657,7]
[344344353,1733358635971,-500.0,0.00024657,7]
[344344354,1733358635981,-571.79,0.00024657,7]
[344344355,1733358635991,-500.0,0.00024657,7]
[344344356,1733358636005,-182.57089431,0.00024657,7]
[344344357,1733358636015,-500.0,0.00024657,7]
[344344358,1733358636024,-525.85430291,0.00024657,7]
[344344359,1733358636033,-500.0,0.00024657,7]
[344344360,1733358636042,-500.0,0.00024657,7]
[344344361,1733358636051,-500.0,0.00024657,7]
[344344362,1733358636186,-464.31010974,0.00024657,7]
[344344363,1733358636196,-500.0,0.00024657,7]
[344344364,1733358636205,-500.0,0.00024657,7]
[344344365,1733358636215,-500.0,0.00024657,7]
[344344366,1733358636224,-508.47324122,0.00024657,7]
[344344367,1733358636234,-500.0,0.00024657,7]
[344344368,1733358636243,-500.0,0.00024657,7]
[344344369,1733358636257,-500.0,0.00024657,7]
[344344370,1733358636267,-500.0,0.00024657,7]
[344344371,1733358636276,-500.0,0.00024657,7]
[344344372,1733358636285,-500.0,0.00024657,7]
[344344373,1733358636295,-500.0,0.00024657,7]
[344344374,1733358636304,-500.0,0.00024657,7]
[344344375,1733358636313,-500.0,0.00024657,7]
[344344376,1733358636322,-696.4,0.00024657,7]
[344344377,1733358636332,-500.0,0.00024657,7]
[344344378,1733358636341,-500.0,0.00024657,7]
[344344379,1733358636350,-7872.39,0.00024657,7]
[344344380,1733358636361,-500.0,0.00024657,7]
[344344381,1733358636371,-500.0,0.00024657,7]
[344344382,1733358636380,-500.0,0.00024657,7]
[344344383,1733358636389,-500.0,0.00024657,7]
[344344384,1733358636399,-500.0,0.00024657,7]
[344344385,1733358636409,-500.0,0.00024657,7]
[344344386,1733358636419,-500.0,0.00024657,7]
[344344387,1733358636428,-500.0,0.00024657,7]
[344344388,1733358636438,-500.0,0.00024657,7]
[344344389,1733358636449,-500.0,0.00024657,7]
[344344390,1733358636459,-410.90529957,0.00024657,7]
[344344391,1733358636468,-500.0,0.00024657,7]
[344344392,1733358636477,-1744.62,0.00024657,7]
[344344393,1733358636486,-3512.76,0.00024657,7]
[344344394,1733358636498,-500.0,0.00024657,7]
[344344395,1733358636508,-500.0,0.00024657,7]
[344344396,1733358636518,-500.0,0.00024657,7]
[344344397,1733358636528,-500.0,0.00024657,7]
[344344398,1733358636538,-500.0,0.00024657,7]
[344344399,1733358636547,-508.2314356,0.00024657,7]
[344344400,1733358636557,-559.25048779,0.00024657,7]
[344344401,1733358636570,-500.0,0.00024657,7]
[344344402,1733358636579,-505.04132601,0.00024657,7]
[344344403,1733358636589,-820.82,0.00024657,7]
[344344404,1733358636598,-500.0,0.00024657,7]
[344344405,1733358636608,-500.0,0.00024657,7]
[344344406,1733358636618,-500.0,0.00024657,7]
[344344407,1733358636627,-500.0,0.00024657,7]
[344344408,1733358636636,-553.23937834,0.00024657,7]
[344344409,1733358636646,-500.0,0.00024657,7]
[344344410,1733358636655,-529.12613786,0.00024657,7]
[344344411,1733358636664,-509.53044566,0.00024657,7]
[344344412,1733358636673,-500.0,0.00024657,7]
[344344413,1733358636683,-500.0,0.00024657,7]
[344344414,1733358636693,-500.0,0.00024657,7]
[344344415,1733358636702,-500.0,0.00024657,7]
[344344416,1733358636712,-500.0,0.00024657,7]
[344344417,1733358636720,-500.0,0.00024657,7]
[344344418,1733358636730,-500.0,0.00024657,7]
[344344419,1733358636739,-500.0,0.00024657,7]
[344344420,1733358636751,-500.0,0.00024657,7]
[344344421,1733358636761,-500.0,0.00024657,7]
[344344422,1733358636770,-500.0,0.00024657,7]
[344344423,1733358636779,-500.0,0.00024657,7]
[344344424,1733358636789,-500.0,0.00024657,7]
[344344425,1733358636799,-500.0,0.00024657,7]
[344344426,1733358636808,-500.0,0.00024657,7]
[344344427,1733358636818,-500.0,0.00024657,7]
[344344428,1733358636828,-580.17,0.00024657,7]
[344344429,1733358636838,-500.0,0.00024657,7]
[344344430,1733358636847,-500.0,0.00024657,7]
[344344431,1733358636856,-500.0,0.00024657,7]
[344344432,1733358636865,-516.39,0.00024657,7]
[344344433,1733358636876,-612.75837568,0.00024657,7]
[344344434,1733358636885,-500.0,0.00024657,7]
[344344435,1733358636894,-694.69,0.00024657,7]
[344344436,1733358636903,-500.0,0.00024657,7]
[344344437,1733358636913,-671.37,0.00024657,7]
[344344438,1733358636922,-500.0,0.00024657,7]
[344344439,1733358636932,-500.0,0.00024657,7]
[344344440,1733358636941,-500.0,0.00024657,7]
[344344441,1733358636950,-500.0,0.00024657,7]
[344344442,1733358636960,-500.0,0.00024657,7]
[344344443,1733358636970,-500.0,0.00024657,7]
[344344444,1733358636979,-500.0,0.00024657,7]
[344344445,1733358636988,-211.72251477,0.00024657,7]
[344344446,1733358637042,-288.27748523,0.00024657,7]
[344344447,1733358637052,-500.0,0.00024657,7]
[344344448,1733358637062,-500.0,0.00024657,7]
[344344449,1733358637071,-500.0,0.00024657,7]
[344344450,1733358637080,-500.0,0.00024657,7]
[344344451,1733358637089,-404.98982053,0.00024657,7]
[344344489,1733358638422,-500.0,0.00021867,2]
[344344490,1733358638435,-500.0,0.00021867,2]
[344344491,1733358638448,-500.0,0.00021867,2]
[344344492,1733358638462,-500.0,0.00021867,2]
[344344493,1733358638478,-500.0,0.00021867,2]
[344344494,1733358638491,-500.0,0.00021867,2]
[344344495,1733358638511,-500.0,0.00021867,2]
[344344496,1733358638524,-500.0,0.00021867,2]
[344344497,1733358638536,-500.0,0.00021867,2]
[344344498,1733358638547,-500.0,0.00021867,2]
[344344499,1733358638560,-500.0,0.00021867,2]
[344344500,1733358638572,-500.0,0.00021867,2]
[344344501,1733358638585,-500.0,0.00021867,2]
[344344502,1733358638597,-500.0,0.00021867,2]
[344344503,1733358638610,-500.0,0.00021867,2]
[344344505,1733358638623,-500.0,0.00021867,2]
[344344506,1733358638636,-500.0,0.00021867,2]
[344344507,1733358638649,-500.0,0.00021867,2]
[344344508,1733358638662,-500.0,0.00021867,2]
[344344509,1733358638675,-500.0,0.00021867,2]
[344344510,1733358638689,-500.0,0.00021867,2]
[344344511,1733358638703,-500.0,0.00021867,2]
[344344512,1733358638715,-500.0,0.00021867,2]
[344344513,1733358638726,-500.0,0.00021867,2]
[344344514,1733358638736,-287.17793444,0.00021867,2]
[344344515,1733358638746,-500.0,0.00021867,2]
[344344516,1733358638761,-500.0,0.00021867,2]
[344344517,1733358638773,-500.0,0.00021867,2]
[344344518,1733358638786,-500.0,0.00021867,2]
[344344519,1733358638800,-500.0,0.00021867,2]
[344344520,1733358638812,-195.95319425,0.00024657,7]
[344344521,1733358638824,-500.0,0.00024657,7]
[344344522,1733358638835,-483.36294289,0.00024657,7]
[344344523,1733358638846,-500.0,0.00024657,7]
[344344524,1733358638858,-500.0,0.00024657,7]
[344344525,1733358638870,-1504.16,0.00024657,7]
[344344526,1733358638881,-500.0,0.00024657,7]
[344344527,1733358638894,-160.51209693,0.00024657,7]
[344344528,1733358638905,-500.0,0.00024657,7]
[344344529,1733358638916,-500.0,0.00024657,7]
[344344530,1733358638926,-500.0,0.00024657,7]
[344344531,1733358638937,-500.0,0.00024657,7]
[344344532,1733358638948,-500.0,0.00024657,7]
[344344533,1733358638959,-500.0,0.00024657,7]
[344344534,1733358638969,-500.0,0.00024657,7]
[344344535,1733358638982,-500.0,0.00024657,7]
[344344536,1733358638994,-500.0,0.00024657,7]
[344344537,1733358639009,-500.0,0.00024657,7]
[344344538,1733358639021,-500.0,0.00024657,7]
[344344539,1733358639032,-500.0,0.00024657,7]
[344344540,1733358639044,-887.35,0.00024657,7]
[344344541,1733358639060,-500.0,0.00024657,7]
[344344542,1733358639071,-1954.98,0.00024657,7]
[344344543,1733358639084,-500.0,0.00024657,7]
[344344544,1733358639095,-500.0,0.00024657,7]
[344344545,1733358639106,-500.0,0.00024657,7]
[344344546,1733358639118,-500.0,0.00024657,7]
[344344547,1733358639129,-507.91723667,0.00024657,7]
[344344548,1733358639141,-514.47,0.00024657,7]
[344344549,1733358639153,-500.0,0.00024657,7]
[344344550,1733358639164,-656.67,0.00024657,7]
[344344551,1733358639175,-550.73343307,0.00024657,7]
[344344552,1733358639187,-500.0,0.00024657,7]
[344344553,1733358639200,-500.0,0.00024657,7]
[344344554,1733358639211,-500.0,0.00024657,7]
[344344555,1733358639223,-1052.9,0.00024657,7]
[344344556,1733358639234,-500.0,0.00024657,7]
[344344557,1733358639246,-500.0,0.00024657,7]
[344344558,1733358639259,-500.0,0.00024657,7]
[344344559,1733358639271,-319.10295559,0.00024657,7]
[344344560,1733358639282,-500.0,0.00024657,7]
[344344561,1733358639292,-500.0,0.00024657,7]
[344344562,1733358639304,-169.84654124,0.00024657,7]